bitfinex-derivatives/quotes_ETHF0:USTF0_20250105
["timestamp","ask_amount","ask_price","bid_price","bid_amount"]
[1736112302728,2.15800821,3644.0,3643.9,2.3076022]
[1736112303121,2.15800821,3644.0,3643.9,3.51622759]
[1736112304319,2.15800821,3644.0,3643.9,2.45022759]
[1736112304505,2.15800821,3644.0,3643.9,0.24702]
[1736112306021,0.24701,3644.1,3643.8,9.71526793]
[1736112306022,3.64878196,3644.1,3643.8,5.41100759]
[1736112306210,3.64878196,3644.1,3644.0,0.24701]
[1736112307117,2.15645802,3644.1,3644.0,0.24701]
[1736112308311,2.40346802,3644.1,3644.0,0.24701]
[1736112308518,0.24701,3644.1,3644.0,0.24701]
[1736112309216,3.48401232,3644.2,3644.0,0.24701]
[1736112310114,3.48401232,3644.2,3643.8,5.41100759]
[1736112310315,3.48401232,3644.2,3644.0,0.24701]
[1736112311019,2.15584974,3644.1,3644.0,0.24701]
[1736112312821,2.40285974,3644.1,3643.8,5.41100759]
[1736112313021,0.8538,3644.0,3643.9,1.31202]
[1736112314224,0.4274,3644.0,3643.9,1.31202]
[1736112314618,3.23701232,3644.1,3643.9,1.065]
[1736112314819,3.23701232,3644.1,3644.0,0.24701]
[1736112315122,3.23701232,3644.3,3644.2,0.247]
[1736112315324,3.23701232,3644.3,3644.2,2.45020759]
[1736112316125,3.65901232,3644.3,3644.2,2.45020759]
[1736112316319,2.57703101,3644.3,3644.2,2.45020759]
[1736112317726,0.422,3644.3,3644.2,2.45020759]
[1736112319821,2.57668944,3644.3,3644.2,2.45020759]
[1736112320422,2.15468944,3644.3,3644.2,2.45020759]
[1736112320820,2.15468944,3644.4,3644.2,2.20320759]
[1736112321025,2.15468944,3644.4,3644.3,0.24699]
[1736112322228,3.23701232,3644.5,3644.2,2.20320759]
[1736112322428,3.23701232,3644.5,3644.4,0.24699]
[1736112323932,0.41177147,3644.5,3644.4,0.24699]
[1736112324626,0.83147147,3644.6,3644.4,0.24699]
[1736112325124,0.83147147,3644.6,3644.5,0.99415558]
[1736112325631,0.4197,3644.6,3644.5,0.99415558]
[1736112327033,0.83147245,3644.6,3644.5,0.99415558]
[1736112327433,0.83147245,3644.6,3644.5,1.24113558]
[1736112334437,0.83147245,3644.6,3643.9,4.2728]
[1736112334738,0.24698,3644.5,3644.4,0.99415558]
[1736112335632,4.72174385,3644.5,3644.4,1.24114558]
[1736112336037,4.72174385,3644.5,3644.4,0.99415558]
[1736112336237,4.72174385,3644.5,3644.4,1.24114558]
[1736112336636,0.41177245,3644.5,3644.4,0.24699]
[1736112336836,0.41177245,3644.5,3644.4,0.68419]
[1736112337834,2.15577424,3644.5,3644.4,0.68419]
[1736112339037,3.23366136,3644.5,3644.4,0.4372]
[1736112339230,3.23366136,3644.5,3644.4,0.68419]
[1736112341937,3.64540488,3644.5,3644.4,0.68419]
[1736112343137,0.41174352,3644.5,3644.4,0.68419]
[1736112344645,4.7296714,3644.6,3644.5,0.24698]
[1736112344878,4.7296714,3644.6,3644.5,1.24113558]
[1736112345576,0.83144352,3644.6,3644.5,1.24113558]
[1736112346656,0.4197,3644.6,3644.5,1.24113558]
[1736112347966,0.83144352,3644.6,3644.5,1.24113558]
[1736112356343,5.43873397,3644.6,3644.5,1.24113558]
[1736112356957,0.24698,3644.5,3644.3,0.24699]
[1736112357167,0.24698,3644.5,3644.4,0.99415558]
[1736112357366,5.68571397,3644.6,3644.4,1.24113558]
[1736112357667,11.08117437,3644.6,3644.4,1.24113558]
[1736112358269,10.83419437,3644.6,3644.5,0.24698]
[1736112358575,11.08116437,3644.6,3644.5,0.24698]
[1736112358865,6.0621304,3644.6,3644.5,0.24698]
[1736112360200,0.24698,3644.5,3644.4,0.99415558]
[1736112360394,0.24698,3644.5,3644.3,0.24699]
[1736112360693,0.24698,3644.5,3644.4,1.24114558]
[1736112360992,9.2699404,3644.6,3644.4,1.24114558]
[1736112361886,5.02008548,3644.5,3644.4,1.24114558]
[1736112362979,0.4197,3644.6,3644.5,0.24698]
[1736112363472,0.66667,3644.6,3644.5,0.24698]
[1736112364260,11.08626825,3644.6,3644.5,0.24698]
[1736112364470,10.83929825,3644.6,3644.4,0.99415558]
[1736112364671,11.08627825,3644.6,3644.4,1.24113558]
[1736112365468,11.08627825,3644.6,3644.5,0.24698]
[1736112365872,0.66668,3644.6,3644.5,0.24698]
[1736112366462,0.4197,3644.6,3644.4,0.99415558]
[1736112366661,0.66668,3644.6,3644.4,1.24113558]
[1736112366864,0.66668,3644.6,3644.5,0.24698]
[1736112367164,5.68699571,3644.6,3644.5,0.24698]
[1736112367474,5.44001571,3644.6,3644.4,0.99415558]
[1736112367869,5.68698571,3644.6,3644.4,1.24113558]
[1736112368366,5.68698571,3644.6,3644.5,0.24698]
[1736112368563,0.66667,3644.6,3644.5,0.24698]
[1736112368766,0.66667,3644.6,3644.4,0.99415558]
[1736112369173,0.66667,3644.6,3644.5,0.24698]
[1736112369480,0.66667,3644.6,3644.4,0.99415558]
[1736112369667,0.4197,3644.6,3644.4,0.99415558]
[1736112369972,0.4197,3644.6,3644.5,0.24698]
[1736112371179,5.44008083,3644.6,3644.5,0.24698]
[1736112374087,5.44008083,3644.6,3644.4,0.99415558]
[1736112374272,5.68706083,3644.6,3644.4,1.24113558]
[1736112374474,5.68706083,3644.6,3644.4,0.99415558]
[1736112374785,5.68706083,3644.6,3644.5,0.24698]
[1736112375279,5.44008083,3644.6,3644.4,0.99415558]
[1736112375480,0.24698,3644.5,3644.4,0.99415558]
[1736112375679,0.24698,3644.5,3644.4,1.24114558]
[1736112375876,5.68706083,3644.6,3644.4,1.24114558]
[1736112376076,0.24698,3644.5,3644.4,0.99415558]
[1736112376274,5.68705083,3644.6,3644.4,1.24113558]
[1736112376883,5.68705083,3644.6,3644.1,5.78686034]
[1736112376884,0.24699,3644.4,3644.2,0.247]
[1736112377085,0.8389,3644.3,3644.2,1.24115558]
[1736112378575,5.85928083,3644.3,3644.2,1.24115558]
[1736112381985,5.02038083,3644.3,3644.2,1.24115558]
[1736112382384,10.41849114,3644.3,3644.2,1.24115558]
[1736112383984,10.66548114,3644.3,3644.2,1.24115558]
[1736112385287,0.247,3644.2,3644.0,0.24701]
[1736112385488,0.6766,3644.2,3644.1,0.99415558]
[1736112385795,1.1239,3644.2,3644.1,0.99415558]
[1736112386488,11.54239114,3644.2,3644.1,0.99415558]
[1736112387785,6.14428083,3644.2,3644.1,0.99415558]
[1736112391395,5.69698083,3644.2,3644.1,0.99415558]
[1736112391991,11.09509114,3644.2,3644.1,0.99415558]
[1736112392387,10.84809114,3644.2,3644.1,1.24116558]
[1736112393292,5.69698083,3644.2,3644.1,1.24116558]
[1736112393491,5.44998083,3644.2,3644.1,1.24116558]
[1736112394688,5.69698083,3644.2,3644.1,1.24116558]
[1736112394993,5.69698083,3644.2,3644.1,0.99415558]
[1736112395688,5.69698083,3644.2,3644.0,0.24701]
[1736112396792,0.4117562,3644.1,3644.0,0.24701]
[1736112398092,0.6766,3644.2,3644.0,0.24701]
[1736112399592,0.4117562,3644.1,3644.0,0.24701]
[1736112400496,5.01728411,3644.1,3644.0,0.24701]
[1736112401789,0.4117562,3644.1,3644.0,0.24701]
[1736112403192,5.82771031,3644.2,3643.9,0.99415558]
[1736112403393,5.82771031,3644.2,3644.1,0.24701]
[1736112404697,10.84514919,3644.2,3644.1,0.24701]
[1736112405800,11.09214919,3644.2,3644.1,0.24701]
[1736112407596,10.84514919,3644.2,3644.1,1.24116558]
[1736112408397,10.84514919,3644.2,3644.1,4.44896558]
[1736112408796,0.8413562,3644.2,3644.1,4.44896558]
[1736112409099,0.4117562,3644.2,3644.1,4.44896558]
[1736112409898,4.31719169,3644.2,3644.1,4.44896558]
[1736112412496,4.31719169,3644.2,3644.1,1.24116558]
[1736112413999,5.01866419,3644.2,3644.1,1.24116558]
[1736112414200,0.24701,3644.1,3643.9,1.24117558]
[1736112414394,0.4351,3644.0,3643.9,1.24117558]
[1736112414594,0.8686,3644.0,3643.9,1.24117558]
[1736112415298,1.2803562,3644.0,3643.9,1.24117558]
[1736112420203,5.88929215,3644.0,3643.9,1.24117558]
[1736112420900,6.13630215,3644.0,3643.9,1.24117558]
[1736112422706,11.53441246,3644.0,3643.9,1.24117558]
[1736112424311,11.28740246,3644.0,3643.7,4.30426034]
[1736112424613,1.24118558,3643.8,3643.7,1.74336034]
[1736112425504,0.24705,3643.5,3643.2,6.70345051]
[1736112425704,0.8708,3643.4,3643.3,0.24706]
[1736112425900,0.8708,3643.4,3643.3,1.24121558]
[1736112427109,5.89149215,3643.4,3643.3,1.24121558]
[1736112427909,6.33919215,3643.4,3643.3,1.24121558]
[1736112428207,1.7302562,3643.4,3643.3,1.24121558]
[1736112429515,5.63613873,3643.4,3643.3,1.24121558]
[1736112430911,6.04789493,3643.4,3643.3,1.24121558]
[1736112432114,5.61259493,3643.4,3643.3,1.24121558]
[1736112433519,1.2949562,3643.4,3643.3,1.24121558]
[1736112434717,2.28911178,3643.4,3643.0,0.4279]
[1736112434912,0.24706,3643.3,3643.1,0.24707]
[1736112435108,0.99415558,3643.2,3642.9,4.20195558]
[1736112435413,0.24709,3642.9,3642.7,0.2471]
[1736112435617,0.4303,3642.8,3642.7,0.2471]
[1736112435923,0.4303,3642.8,3642.7,1.24125558]
[1736112435924,0.848,3642.8,3642.7,1.24125558]
[1736112437914,3.23596604,3643.0,3642.9,0.24709]
[1736112438222,3.23596604,3643.0,3642.9,1.24124558]
[1736112438223,4.31763873,3643.0,3642.9,1.24124558]
[1736112438718,4.31763873,3643.0,3642.9,2.06534558]
[1736112439315,2.15562291,3643.3,3643.0,0.24708]
[1736112439520,2.15562291,3643.3,3643.2,0.24707]
[1736112440722,2.15562291,3643.3,3643.1,0.99415558]
[1736112440723,0.24707,3643.2,3643.1,0.24707]
[1736112440918,0.24708,3643.1,3642.9,0.41]
[1736112441117,1.67103558,3643.1,3642.9,0.65708]
[1736112442114,3.64537517,3643.0,3642.9,0.65708]
[1736112443920,4.65738995,3643.1,3642.9,0.41]
[1736112444127,4.65738995,3643.1,3643.0,0.24708]
[1736112444423,3.66323437,3643.1,3642.9,0.65709]
[1736112445324,3.66323437,3643.1,3642.9,0.41]
[1736112445528,3.66323437,3643.1,3642.9,0.65708]
[1736112446829,3.66323437,3643.1,3643.0,0.24708]
[1736112451833,3.91030437,3643.1,3643.0,0.24708]
[1736112453532,3.91030437,3643.1,3642.9,1.40415558]
[1736112453735,3.91030437,3643.1,3642.9,1.65123558]
[1736112454430,2.15394902,3643.0,3642.9,1.65123558]
[1736112456930,3.91030437,3643.1,3642.9,1.65123558]
[1736112457833,0.24708,3643.0,3642.9,1.65123558]
[1736112458732,3.91031437,3643.1,3642.9,1.65123558]
[1736112459838,0.24708,3643.0,3642.9,0.41]
[1736112461328,3.89245771,3643.0,3642.9,0.41]
[1736112462135,3.89245771,3643.0,3642.9,0.65709]
[1736112464737,3.89245771,3643.0,3642.9,0.41]
[1736112466233,0.65902334,3643.0,3642.9,0.41]
[1736112466837,0.41194334,3643.0,3642.9,0.65709]
[1736112467231,4.99451873,3643.1,3642.9,0.65709]
[1736112467940,0.24708,3643.0,3642.9,0.65709]
[1736112468538,0.24708,3643.0,3642.9,0.41]
[1736112468740,0.65902334,3643.0,3642.9,0.41]
[1736112469445,0.41194334,3643.0,3642.5,0.24711]
[1736112469647,1.40855558,3642.9,3642.5,0.24711]
[1736112469843,0.99415558,3642.7,3642.3,0.426]
[1736112470049,0.24712,3642.5,3642.3,0.67313]
[1736112470349,0.24712,3642.4,3642.3,0.67313]
[1736112470641,0.4144,3642.4,3642.3,0.67313]
[1736112470947,0.66152,3642.4,3642.3,0.67313]
[1736112471449,1.07346334,3642.4,3642.3,0.67313]
[1736112472838,0.82634334,3642.4,3642.3,0.67313]
[1736112473054,0.41194334,3642.4,3642.3,1.10123]
[1736112474354,0.83204334,3642.4,3642.3,1.10123]
[1736112477956,0.83204334,3642.4,3642.3,0.67313]
[1736112478258,0.83204334,3642.4,3642.3,0.24713]
[1736112478557,1.07916334,3642.4,3642.3,0.24713]
[1736112479951,2.07331892,3642.4,3642.3,0.24713]
[1736112480151,2.07331892,3642.4,3642.2,0.24713]
[1736112480152,6.39096765,3642.4,3642.2,0.24713]
[1736112480450,6.39096765,3642.4,3642.3,0.24713]
[1736112480859,6.39096765,3642.4,3642.2,0.24713]
[1736112481253,6.39096765,3642.4,3642.0,5.06047032]
[1736112481558,0.99415558,3642.2,3641.6,6.45639051]
[1736112481758,1.81525558,3642.1,3642.0,0.24715]
[1736112482155,2.06239558,3642.1,3642.0,0.24715]
[1736112482555,2.06239558,3642.1,3641.9,0.24715]
[1736112482857,0.4149,3642.0,3641.9,0.24715]
[1736112483958,0.82684334,3642.0,3641.9,0.24715]
[1736112484561,1.07399334,3642.0,3641.9,0.24715]
[1736112484858,0.24718,3641.6,3641.4,0.24719]
[1736112485054,0.99415558,3641.5,3641.4,0.24719]
[1736112485259,0.99415558,3641.5,3641.3,0.24719]
[1736112485260,1.24133558,3641.5,3641.3,0.24719]
[1736112485461,0.43,3641.4,3641.3,0.24719]
[1736112486462,3.66635203,3641.4,3641.3,0.24719]
[1736112487556,0.43,3641.4,3641.3,0.24719]
[1736112489356,0.43,3641.4,3641.2,0.99415558]
[1736112489357,0.2472,3641.3,3641.2,0.2472]
[1736112489764,0.43,3641.4,3641.2,0.2472]
[1736112489963,0.67719,3641.4,3641.2,0.2472]
[1736112490264,0.2472,3641.3,3641.2,0.2472]
[1736112491163,0.2472,3641.3,3641.1,1.41375558]
[1736112491364,0.43,3641.4,3641.1,1.41375558]
[1736112491668,2.15431247,3641.3,3641.2,0.2472]
[1736112492468,2.83150247,3641.4,3641.2,0.2472]
[1736112493071,2.58431247,3641.4,3641.3,1.24135558]
[1736112493368,2.15431247,3641.4,3641.3,1.24135558]
[1736112494164,2.15431247,3641.4,3641.3,2.30635558]
[1736112494972,3.2078,3641.6,3641.5,0.24718]
[1736112495272,3.2078,3641.6,3641.5,1.24133558]
[1736112497375,3.2078,3641.6,3641.5,0.24718]
[1736112497575,3.6392,3641.6,3641.5,0.24718]
[1736112500166,3.6392,3641.6,3641.3,0.99415558]
[1736112500470,0.24719,3641.4,3641.2,1.3122]
[1736112500676,0.4273,3641.3,3641.2,1.3122]
[1736112500868,1.1221,3641.3,3641.2,0.2472]
[1736112501067,0.24721,3641.2,3641.0,1.31221]
[1736112501271,0.4292,3641.1,3641.0,1.31221]
[1736112508684,1.1221,3641.3,3641.2,0.2472]
[1736112508883,0.6948,3641.3,3641.2,0.2472]
[1736112509384,0.6948,3641.3,3641.2,0.6708]
[1736112510579,0.6948,3641.3,3641.2,0.4236]
[1736112513986,2.84911247,3641.3,3641.2,0.4236]
[1736112516286,0.2472,3641.2,3641.1,0.99415558]
[1736112516996,0.2472,3641.2,3641.1,1.24136558]
[1736112517994,2.40151247,3641.2,3641.1,1.24136558]
[1736112520593,0.2472,3641.2,3641.1,1.24136558]
[1736112521889,0.2472,3641.2,3641.1,0.99415558]
[1736112522290,3.48355203,3641.2,3641.1,0.99415558]
[1736112523192,3.89568836,3641.2,3641.1,0.99415558]
[1736112524897,0.65933633,3641.2,3641.1,0.99415558]
[1736112526801,4.56383426,3641.2,3641.1,1.24136558]
[1736112527296,4.56383426,3641.2,3641.1,0.99415558]
[1736112528200,4.97597059,3641.2,3641.1,0.99415558]
[1736112530597,0.65933633,3641.2,3641.1,0.99415558]
[1736112532003,0.2472,3641.2,3641.1,0.99415558]
[1736112532900,5.33215744,3641.2,3641.1,0.99415558]
[1736112535600,10.73266673,3641.2,3641.1,0.99415558]
[1736112536304,10.73266673,3641.2,3641.1,1.24136558]
[1736112536705,10.73266673,3641.2,3641.1,0.99415558]
[1736112536910,5.33215744,3641.2,3641.1,0.99415558]
[1736112537507,5.33215744,3641.2,3641.1,1.24136558]
[1736112537907,10.73266673,3641.2,3641.1,1.24136558]
[1736112538706,10.73266673,3641.2,3641.1,0.99415558]
[1736112541505,10.73266673,3641.2,3641.0,0.24721]
[1736112542613,0.24721,3641.1,3640.9,1.65837558]
[1736112543096,5.33216744,3641.1,3640.9,1.65837558]
[1736112543805,5.52485744,3641.1,3640.8,1.31223]
[1736112544003,5.96335744,3641.1,3640.8,1.31223]
[1736112544203,0.41213633,3641.0,3640.8,1.31223]
[1736112544403,0.24722,3640.9,3640.8,1.31223]
[1736112544610,0.65962,3640.9,3640.8,2.30638558]
[1736112545601,1.07175633,3640.9,3640.8,2.30638558]
[1736112546908,1.07175633,3640.9,3640.8,6.62574741]
[1736112547410,0.82453633,3640.9,3640.8,6.62574741]
[1736112547907,1.07175633,3640.9,3640.8,6.62574741]
[1736112548411,5.75094149,3640.9,3640.8,6.62574741]
[1736112550313,5.50372149,3640.9,3640.8,6.62574741]
[1736112552015,5.50372149,3640.9,3640.8,5.56074741]
[1736112553608,6.74509707,3640.9,3640.8,4.31936183]
[1736112554006,5.75094149,3640.9,3640.8,4.31936183]
[1736112555208,6.74509707,3640.9,3640.8,4.31936183]
[1736112555408,6.49787707,3640.9,3640.6,1.24139558]
[1736112555611,0.24723,3640.8,3640.6,0.24724]
[1736112555911,0.24723,3640.8,3640.7,0.24724]
[1736112556910,10.74512603,3640.8,3640.7,0.24724]
[1736112557112,10.49789603,3640.8,3640.7,0.24724]
[1736112558521,10.74512603,3640.8,3640.6,0.24724]
[1736112558709,10.49789603,3640.8,3640.7,0.24724]
[1736112561118,5.09132149,3640.8,3640.7,0.24724]
[1736112563719,10.49789603,3640.8,3640.7,0.24724]
[1736112565020,5.09132149,3640.8,3640.7,0.24724]
[1736112565919,5.09132149,3640.8,3640.7,1.24139558]
[1736112567329,5.09132149,3640.8,3640.7,0.24724]
[1736112568830,10.49789603,3640.8,3640.7,0.24724]
[1736112569024,10.49789603,3640.8,3640.7,1.24139558]
[1736112570026,4.73474646,3640.8,3640.7,1.24139558]
[1736112571233,5.81897454,3640.9,3640.8,0.24723]
[1736112571729,0.24723,3640.8,3640.7,0.24723]
[1736112571930,0.99415558,3640.8,3640.7,0.24723]
[1736112572731,1.24138558,3640.8,3640.7,0.24723]
[1736112573320,0.99415558,3640.8,3640.7,0.24723]
[1736112573731,11.48803573,3640.8,3640.7,0.24723]
[1736112573933,11.73526573,3640.8,3640.7,0.24723]
[1736112574529,0.24724,3640.7,3640.6,0.24724]
[1736112574731,11.73526573,3640.8,3640.6,0.24724]
[1736112575039,11.73526573,3640.8,3640.3,8.52131741]
[1736112575040,11.48803573,3640.8,3640.3,8.52131741]
[1736112575333,11.73526573,3640.8,3640.7,0.24724]
[1736112575830,11.48803573,3640.8,3640.7,0.24724]
[1736112582735,10.49388015,3640.8,3640.7,0.24724]
[1736112584840,11.48803573,3640.8,3640.7,0.24724]
[1736112585342,11.48803573,3640.8,3640.6,0.24724]
[1736112585343,0.24724,3640.7,3640.6,0.24724]
[1736112585544,11.73526573,3640.8,3640.7,0.24724]
[1736112585742,11.48803573,3640.8,3640.6,0.24724]
[1736112585942,11.73526573,3640.8,3640.6,0.24724]
[1736112586443,0.24724,3640.7,3640.6,0.24724]
[1736112586835,11.48803573,3640.8,3640.6,0.24724]
[1736112587043,11.73526573,3640.8,3640.6,0.24724]
[1736112587341,5.33454561,3640.7,3640.6,0.24724]
[1736112588934,10.74112015,3640.7,3640.6,0.24724]
[1736112589135,10.49388015,3640.7,3640.6,0.24724]
[1736112589743,10.74112015,3640.7,3640.6,0.24724]
[1736112591742,10.74112015,3640.7,3640.3,4.63335558]
[1736112591945,0.99415558,3640.6,3640.3,4.63335558]
[1736112592239,0.24725,3640.5,3640.4,0.24726]
[1736112592439,0.66115,3640.5,3640.3,0.24726]
[1736112592633,0.66115,3640.5,3640.4,0.24726]
[1736112592838,1.07328633,3640.5,3640.4,0.24726]
[1736112595846,0.82603633,3640.5,3640.4,0.24726]
[1736112600154,0.82603633,3640.5,3640.2,4.76046183]
[1736112600459,1.24141558,3640.3,3640.2,4.31936183]
[1736112602563,6.08353824,3640.3,3639.7,4.99906183]
[1736112602863,1.24145558,3639.8,3639.7,4.75176183]
[1736112603963,6.08353824,3639.8,3639.4,4.31936183]
[1736112604163,1.24147558,3639.5,3639.4,4.31936183]
[1736112604867,0.99415558,3639.5,3639.4,4.31936183]
[1736112605167,0.99415558,3639.5,3639.3,4.7175]
[1736112605168,1.65361191,3639.5,3639.3,4.96483]
[1736112605364,1.40629191,3639.5,3639.3,4.7175]
[1736112605554,2.07371191,3639.5,3639.3,4.96483]
[1736112605757,1.82639191,3639.5,3639.4,0.24733]
[1736112605958,2.07371191,3639.5,3639.3,4.96483]
[1736112606558,4.90082784,3639.5,3639.3,4.96483]
[1736112606766,4.65350784,3639.5,3639.4,0.24733]
[1736112607263,3.23925226,3639.5,3639.4,0.24733]
[1736112607463,4.32050396,3639.7,3639.6,0.24731]
[1736112607770,1.95918294,3639.7,3639.6,2.23562116]
[1736112607965,1.95918294,3639.8,3639.7,0.24731]
[1736112608162,1.95918294,3639.8,3639.7,3.45511]
[1736112609573,2.15772653,3640.3,3640.2,0.24727]
[1736112609761,2.15772653,3640.3,3640.2,1.24142558]
[1736112611769,2.15772653,3640.7,3640.6,0.24724]
[1736112611963,2.15772653,3640.7,3640.6,1.24139558]
[1736112614366,2.15772653,3640.8,3640.7,0.24724]
[1736112615472,2.15772653,3640.9,3640.8,0.24723]
[1736112615672,2.15772653,3640.9,3640.8,1.24138558]
[1736112616270,2.15772653,3640.9,3640.8,2.30538558]
[1736112622981,2.56962653,3641.0,3640.9,0.24722]
[1736112623175,2.15772653,3641.0,3640.9,4.44917558]
[1736112623384,1.00554653,3641.0,3640.9,9.44917558]
[1736112623987,5.4042702,3641.6,3641.5,0.24718]
[1736112624178,5.4042702,3641.6,3641.5,5.51313558]
[1736112624487,1.3057,3641.8,3641.5,5.26595558]
[1736112624672,1.3057,3641.8,3641.7,1.24132558]
[1736112628293,1.3057,3641.8,3641.7,0.24717]
[1736112634793,1.3057,3641.8,3641.2,3.2078]
[1736112635000,1.3057,3641.8,3641.1,0.24721]
[1736112635001,1.24135558,3641.3,3641.1,0.24721]
[1736112635292,0.8367,3641.2,3640.8,4.29971482]
[1736112635492,1.24137558,3640.9,3640.8,2.27591482]
[1736112635696,0.24724,3640.7,3640.6,6.45639051]
[1736112635896,1.24139558,3640.7,3640.6,6.45639051]
[1736112636197,1.24139558,3640.7,3640.6,5.78179051]
[1736112636389,1.24139558,3640.7,3640.5,1.064]
[1736112636390,0.24724,3640.6,3640.5,1.064]
[1736112636591,0.24725,3640.5,3640.3,0.24726]
[1736112636798,0.99415558,3640.4,3640.3,0.24726]
[1736112637501,0.24727,3640.3,3640.0,0.24728]
[1736112637696,1.24142558,3640.2,3640.0,0.24728]
[1736112638586,0.99415558,3640.2,3639.7,3.2078]
[1736112638797,3.2078,3640.6,3639.6,0.24731]
[1736112638798,0.99415558,3639.8,3639.6,0.24731]
[1736112638995,0.2473,3639.8,3639.6,0.24731]
[1736112639590,0.24729,3639.9,3639.6,0.24731]
[1736112639794,0.24729,3639.9,3639.7,0.2473]
[1736112640395,0.24729,3639.9,3639.5,1.064]
[1736112640596,0.24729,3639.9,3639.7,0.24731]
[1736112641090,0.24729,3639.9,3639.6,0.24731]
[1736112645509,0.4096,3640.0,3639.3,4.0596]
[1736112645717,0.2473,3639.8,3639.5,0.24732]
[1736112646109,0.4096,3640.0,3639.4,1.064]
[1736112646315,0.2473,3639.9,3639.6,0.24731]
[1736112646515,0.2473,3639.9,3639.4,1.064]
[1736112646713,0.2473,3639.9,3639.6,0.24731]
[1736112647515,0.4096,3640.0,3639.4,3.2729253]
[1736112647715,1.12538,3640.1,3639.8,0.24729]
[1736112648111,4.30248662,3640.7,3640.0,2.2089253]
[1736112648318,4.95692662,3640.7,3640.4,0.24725]
[1736112648513,0.24725,3640.6,3640.3,0.24726]
[1736112648715,0.24725,3640.6,3640.1,5.1277]
[1736112648919,0.24725,3640.6,3640.4,0.24726]
[1736112653217,0.4072,3640.7,3640.1,5.1277]
[1736112653415,0.65444,3640.7,3640.5,0.24725]
[1736112653925,0.65444,3640.7,3640.1,5.1277]
[1736112654118,0.65444,3640.7,3640.4,0.24725]
[1736112654119,0.4072,3640.7,3640.4,0.24725]
[1736112654422,0.24725,3640.6,3640.4,0.24725]
[1736112654610,0.65444,3640.7,3640.5,0.24725]
[1736112654815,0.24723,3640.8,3640.2,0.24727]
[1736112655010,0.24723,3640.8,3640.1,5.1277]
[1736112655011,0.24723,3640.8,3640.5,0.24724]
[1736112656422,0.24724,3640.8,3640.5,0.24724]
[1736112656721,3.2078,3640.9,3640.5,0.24724]
[1736112656919,0.24724,3640.7,3640.5,0.24724]
[1736112659013,0.24724,3640.7,3640.1,5.1277]
[1736112659419,0.24724,3640.7,3640.5,0.24725]
[1736112659922,0.24723,3640.8,3640.4,0.24725]
[1736112660222,0.24724,3640.7,3640.4,0.24725]
[1736112660427,0.24727,3640.3,3640.1,3.45508]
[1736112660721,0.66357,3640.2,3640.1,3.2078]
[1736112661423,0.24727,3640.2,3640.1,3.2078]
[1736112664323,0.24727,3640.2,3640.0,0.24728]
[1736112665520,0.24728,3640.1,3640.0,0.24728]
[1736112665819,0.24729,3640.0,3639.8,1.3113]
[1736112666023,0.24729,3640.0,3639.9,0.24729]
[1736112666622,0.24728,3640.1,3639.9,0.24729]
[1736112666823,0.24728,3640.0,3639.9,0.24729]
[1736112667924,0.24728,3640.1,3639.9,0.24729]
[1736112668123,0.4228,3640.0,3639.9,0.24729]
[1736112668725,0.67009,3640.0,3639.8,0.24729]
[1736112668925,0.4228,3640.0,3639.7,0.8314]
[1736112669127,0.4228,3640.0,3639.9,0.24729]
[1736112670421,0.67008,3640.0,3639.9,0.24729]
[1736112670622,0.4228,3640.0,3639.9,0.24729]
[1736112671022,0.4185,3640.4,3639.7,0.8314]
[1736112671228,0.24727,3640.2,3640.1,0.24728]
[1736112671427,0.4354,3640.3,3639.9,0.24729]
[1736112671629,0.24728,3640.0,3639.9,0.24729]
[1736112672226,0.24728,3640.1,3639.9,0.24729]
[1736112672627,0.24728,3640.1,3639.7,0.421]
[1736112672628,0.24728,3640.1,3639.8,3.2078]
[1736112672833,0.24728,3640.1,3639.7,0.421]
[1736112674329,0.24728,3640.1,3640.0,0.24728]
[1736112675723,0.4354,3640.3,3639.7,0.421]
[1736112675925,0.24728,3640.2,3640.0,0.24728]
[1736112676324,0.24728,3640.2,3639.7,0.421]
[1736112676528,0.24728,3640.2,3640.0,0.24728]
[1736112678431,0.24728,3640.2,3639.7,0.421]
[1736112678630,0.24728,3640.2,3640.1,0.24728]
[1736112679036,3.90860032,3640.3,3640.1,0.24728]
[1736112679231,3.22593032,3640.2,3640.1,0.24728]
[1736112680434,3.63817825,3640.2,3640.1,0.24728]
[1736112681429,3.22593032,3640.3,3639.8,3.2078]
[1736112681628,3.22593032,3640.3,3640.2,0.24727]
[1736112682632,4.71473455,3640.4,3640.3,0.24726]
[1736112683338,4.71473455,3640.4,3640.3,2.4561853]
[1736112683537,4.71473455,3640.4,3640.3,3.3215853]
[1736112683927,3.23927797,3640.4,3640.3,3.3215853]
[1736112684328,3.23927797,3640.4,3640.3,1.11266]
[1736112685436,4.71473455,3640.6,3640.4,0.24726]
[1736112685437,3.23927797,3640.5,3640.4,0.24726]
[1736112685941,3.23927797,3640.5,3640.4,0.65546]
[1736112692736,3.23927797,3640.8,3640.7,0.24724]
[1736112692931,3.23927797,3640.8,3640.7,3.45504]
[1736112694144,3.23927797,3641.0,3640.7,3.2078]
[1736112694344,3.23927797,3641.0,3640.9,0.24722]
[1736112694644,3.23927797,3641.0,3640.9,1.31122]
[1736112695143,3.23927797,3641.0,3640.9,3.5201453]
[1736112695354,3.6515259,3641.1,3641.0,0.24722]
[1736112695539,3.6515259,3641.1,3641.0,1.08682]
[1736112695739,3.6515259,3641.1,3641.0,1.52062]
[1736112696945,3.6515259,3641.4,3641.3,0.2472]
[1736112698245,3.23927797,3641.4,3641.3,0.2472]
[1736112699648,5.65320712,3641.5,3641.3,0.2472]
[1736112699949,5.90039712,3641.5,3641.3,0.2472]
[1736112700948,3.23927797,3641.4,3641.3,0.2472]
[1736112702146,5.90039712,3641.5,3641.3,0.2472]
[1736112705852,5.90039712,3641.5,3641.0,1.2734]
[1736112706045,5.90039712,3641.5,3641.4,0.24719]
[1736112706852,5.65320712,3641.5,3641.4,0.24719]
[1736112707155,2.41392915,3641.5,3641.4,1.24301788]
[1736112709059,2.41392915,3641.5,3641.4,0.24719]
[1736112710468,2.41392915,3641.5,3641.0,3.4801007]
[1736112710773,2.41392915,3641.5,3641.2,0.2472]
[1736112710975,0.24719,3641.4,3641.2,0.2472]
[1736112711368,0.24719,3641.4,3641.3,0.2472]
[1736112716878,2.66111915,3641.5,3641.4,0.24719]